bitfinex/quotes_BTCUSD_20250410
["timestamp","ask_amount","ask_price","bid_price","bid_amount"]
[1744280353693,0.244212,81896.0,81893.0,0.12055382]
[1744280353920,0.244218,81894.0,81893.0,0.12055382]
[1744280354112,0.244239,81887.0,81882.0,0.244253]
[1744280354312,0.244239,81887.0,81886.0,0.26499382]
[1744280354563,0.244234,81889.0,81886.0,0.26499382]
[1744280354783,0.25645,81887.0,81886.0,0.14444]
[1744280357132,0.25645,81887.0,81885.0,2e-07]
[1744280357133,0.256453,81886.0,81885.0,2e-07]
[1744280358532,0.26499797,81886.0,81885.0,2e-07]
[1744280358760,0.75907726,81886.0,81885.0,2e-07]
[1744280358984,0.89209409,81886.0,81885.0,2e-07]
[1744280359179,0.2565,81871.0,81870.0,0.0003376]
[1744280359386,0.3029,81871.0,81870.0,0.0003376]
[1744280359586,0.86064034,81871.0,81870.0,0.0003376]
[1744280359787,0.87203311,81871.0,81870.0,0.0003376]
[1744280359996,1.27203311,81871.0,81870.0,0.0003376]
[1744280360418,1.42497808,81871.0,81870.0,6e-07]
[1744280360620,1.42510536,81871.0,81870.0,6e-07]
[1744280360820,1.47230536,81871.0,81870.0,6e-07]
[1744280362202,1.47234536,81871.0,81870.0,6e-07]
[1744280364159,0.012214,81870.0,81869.0,2e-07]
[1744280364277,0.88716782,81870.0,81869.0,2e-07]
[1744280364630,0.92134711,81870.0,81869.0,2e-07]
[1744280364835,0.92989208,81870.0,81869.0,2e-07]
[1744280365037,1.32989208,81870.0,81869.0,2e-07]
[1744280365478,1.30710556,81870.0,81869.0,2e-07]
[1744280366130,1.45262556,81870.0,81869.0,2e-07]
[1744280367659,1.46178463,81870.0,81869.0,2e-07]
[1744280369038,0.85571081,81870.0,81869.0,2e-07]
[1744280369247,1.11049624,81870.0,81869.0,2e-07]
[1744280369411,0.45180724,81870.0,81869.0,2e-07]
[1744280369619,0.68559981,81870.0,81869.0,2e-07]
[1744280370307,0.67420704,81870.0,81869.0,2e-07]
[1744280371655,0.67428611,81870.0,81869.0,2e-07]
[1744280374518,0.68564184,81870.0,81869.0,2e-07]
[1744280381840,1.63382566,81870.0,81869.0,2e-07]
[1744280382139,0.596528,81862.0,81861.0,2e-07]
[1744280382339,0.9214865,81862.0,81861.0,2e-07]
[1744280382540,0.9214865,81862.0,81852.0,6e-07]
[1744280382541,0.646257,81853.0,81852.0,6e-07]
[1744280382737,1.2724409,81853.0,81852.0,6e-07]
[1744280382944,1.75421587,81853.0,81852.0,6e-07]
[1744280383147,1.67211438,81853.0,81852.0,6e-07]
[1744280383679,0.012219,81838.0,81837.0,0.0003376]
[1744280383924,0.6057494,81838.0,81837.0,0.0003376]
[1744280384340,0.61429437,81838.0,81837.0,0.0003376]
[1744280384549,1.01429437,81838.0,81837.0,0.0003376]
[1744280384685,1.13484819,81838.0,81837.0,0.0003376]
[1744280384885,1.13505387,81838.0,81837.0,0.0003376]
[1744280388663,1.54945387,81838.0,81837.0,0.0003376]
[1744280389666,0.67450005,81838.0,81837.0,0.0003376]
[1744280391288,0.41789605,81838.0,81837.0,0.01237768]
[1744280391584,0.41789605,81838.0,81837.0,0.36527942]
[1744280391783,0.00935108,81838.0,81837.0,0.49390687]
[1744280391987,0.00935108,81838.0,81837.0,0.21339142]
[1744280391988,0.26595508,81838.0,81837.0,0.21339142]
[1744280392188,0.00020568,81838.0,81837.0,0.21339142]
[1744280392409,0.10863419,81871.0,81865.0,0.012215]
[1744280392612,0.012215,81866.0,81865.0,0.12055382]
[1744280393008,0.256516,81866.0,81865.0,0.12055382]
[1744280393174,0.012216,81856.0,81853.0,0.0496]
[1744280393373,0.25655,81855.0,81854.0,0.12055382]
[1744280393710,0.25654,81859.0,81855.0,0.244334]
[1744280393916,0.244319,81860.0,81857.0,0.244327]
[1744280394291,0.244319,81860.0,81854.0,0.13276982]
[1744280394292,0.244293,81869.0,81866.0,0.244301]
[1744280394616,0.02273617,81868.0,81866.0,0.244301]
[1744280394819,0.03126333,81868.0,81867.0,0.256512]
[1744280395359,0.00852716,81868.0,81867.0,0.256512]
[1744280395558,0.00852716,81869.0,81867.0,0.244298]
[1744280396129,0.00852716,81869.0,81868.0,0.39160367]
[1744280396334,0.00852716,81869.0,81868.0,0.43850367]
[1744280396734,0.0001277,81871.0,81870.0,0.256503]
[1744280396975,0.0001277,81871.0,81870.0,0.39159767]
[1744280399362,0.0001277,81871.0,81870.0,0.37705682]
[1744280399990,0.0001277,81871.0,81864.0,0.01212959]
[1744280399991,0.244304,81865.0,81864.0,0.01212959]
[1744280400163,0.244324,81859.0,81852.0,0.012217]
[1744280400363,0.012217,81850.0,81846.0,0.14536]
[1744280400561,0.244356,81848.0,81846.0,0.14536]
[1744280400874,0.012217,81847.0,81844.0,0.244367]
[1744280401075,0.00607061,81847.0,81845.0,0.244362]
[1744280401332,0.244359,81847.0,81837.0,0.0125566]
[1744280401559,0.00606944,81846.0,81843.0,0.244369]
[1744280401692,0.256572,81848.0,81844.0,0.244366]
[1744280401892,0.00607061,81847.0,81845.0,0.244363]
[1744280402653,0.00607061,81847.0,81844.0,0.244366]
[1744280403181,0.25042961,81847.0,81844.0,0.244366]
[1744280403386,0.25042961,81847.0,81845.0,0.244363]
[1744280403387,0.00607061,81847.0,81845.0,0.244363]
[1744280404029,0.00607061,81847.0,81844.0,0.256584]
[1744280404344,0.256571,81849.0,81843.0,0.012218]
[1744280404489,0.244359,81847.0,81844.0,0.244366]
[1744280404689,0.244359,81847.0,81843.0,0.244368]
[1744280404690,0.00606944,81846.0,81843.0,0.244368]
[1744280405195,0.25043144,81846.0,81842.0,0.25659]
[1744280405374,0.012218,81845.0,81840.0,0.256596]
[1744280405536,0.012218,81844.0,81839.0,0.244382]
[1744280405737,0.012219,81838.0,81836.0,0.0003376]
[1744280405945,0.256604,81838.0,81836.0,0.0003376]
[1744280406167,0.26265364,81838.0,81836.0,0.0003376]
[1744280407567,0.38320746,81838.0,81836.0,0.0003376]
[1744280408091,1.13172889,81838.0,81836.0,0.0003376]
[1744280408264,1.23042889,81838.0,81836.0,0.0003376]
[1744280408668,1.35086148,81838.0,81836.0,0.0003376]
[1744280409272,1.35086148,81838.0,81835.0,0.0003372]
[1744280409273,0.584391,81836.0,81835.0,4e-07]
[1744280409436,0.71716382,81836.0,81835.0,4e-07]
[1744280409807,0.73169585,81836.0,81835.0,4e-07]
[1744280410200,1.13169585,81836.0,81835.0,4e-07]
[1744280414244,0.244456,81815.0,81804.0,0.0003374]
[1744280414451,0.256685,81812.0,81811.0,0.00076198]
[1744280414648,0.76583882,81812.0,81811.0,0.00076198]
[1744280415005,1.18618235,81812.0,81811.0,0.00076198]
[1744280415216,1.63528235,81812.0,81811.0,0.00076198]
[1744280415353,1.77644912,81812.0,81811.0,0.00076198]
[1744280415557,1.65601653,81812.0,81811.0,0.00076198]
[1744280421096,1.65601653,81812.0,81811.0,9.8e-07]
[1744280421316,1.24161653,81812.0,81811.0,9.8e-07]
[1744280421521,0.596707,81805.0,81804.0,3.8e-07]
[1744280421720,0.72288466,81805.0,81804.0,5.9e-07]
[1744280422398,1.13140609,81805.0,81804.0,5.9e-07]
[1744280423292,1.13140609,81805.0,81801.0,0.004]
[1744280423293,0.596716,81802.0,81801.0,5.9e-07]
[1744280423500,0.71726982,81802.0,81801.0,5.9e-07]
[1744280423785,0.73139125,81802.0,81801.0,5.9e-07]
[1744280424047,1.13139125,81802.0,81801.0,5.9e-07]
[1744280425763,1.27643125,81802.0,81801.0,5.9e-07]
[1744280426454,1.39686384,81802.0,81801.0,5.9e-07]
[1744280426814,1.32363125,81802.0,81801.0,5.9e-07]
[1744280430065,1.32363125,81802.0,81794.0,5.9e-07]
[1744280430066,0.641938,81795.0,81794.0,5.9e-07]
[1744280430286,0.76249182,81795.0,81794.0,5.9e-07]
[1744280430699,0.76796398,81795.0,81794.0,5.9e-07]
[1744280430905,1.17648541,81795.0,81794.0,5.9e-07]
[1744280431677,1.18230041,81795.0,81794.0,5.9e-07]
[1744280433781,1.18230041,81795.0,81781.0,3.9e-07]
[1744280433782,0.596763,81787.0,81781.0,3.9e-07]
[1744280433982,0.596779,81782.0,81781.0,3.9e-07]
[1744280434313,0.596779,81782.0,81771.0,0.004]
[1744280434314,0.596789,81779.0,81778.0,7.9e-07]
[1744280434515,0.77496425,81779.0,81778.0,7.9e-07]
[1744280434716,1.18621385,81779.0,81778.0,7.9e-07]
[1744280435668,1.18634142,81779.0,81778.0,7.9e-07]
[1744280436913,0.256811,81772.0,81771.0,7.9e-07]
[1744280437112,0.596842,81762.0,81761.0,1.9e-07]
[1744280437259,0.86251582,81762.0,81761.0,1.9e-07]
[1744280437615,1.2822599,81762.0,81761.0,1.9e-07]
[1744280439175,1.1371399,81762.0,81761.0,1.9e-07]
[1744280439375,1.16170608,81762.0,81761.0,1.9e-07]
[1744280439966,1.2822599,81762.0,81761.0,1.9e-07]
[1744280441034,1.3282599,81762.0,81761.0,1.9e-07]
[1744280441367,1.2822599,81762.0,81761.0,1.9e-07]
[1744280441778,1.1371399,81762.0,81761.0,1.9e-07]
[1744280441987,1.2822599,81762.0,81761.0,1.9e-07]
[1744280443353,1.29432932,81762.0,81761.0,1.9e-07]
[1744280444665,1.14920932,81762.0,81761.0,1.9e-07]
[1744280444885,1.29432932,81762.0,81761.0,1.9e-07]
[1744280448820,1.29436932,81762.0,81761.0,1.9e-07]
[1744280452358,0.596861,81756.0,81755.0,7.9e-07]
[1744280452577,0.71741482,81756.0,81755.0,7.9e-07]
[1744280452804,0.72846113,81756.0,81755.0,7.9e-07]
[1744280453284,1.12846113,81756.0,81755.0,7.9e-07]
[1744280453505,1.13698256,81756.0,81755.0,7.9e-07]
[1744280453748,1.18558256,81756.0,81755.0,7.9e-07]
[1744280455154,1.23318256,81756.0,81755.0,7.9e-07]
[1744280457299,1.24240717,81756.0,81755.0,7.9e-07]
[1744280457997,1.28310256,81756.0,81755.0,7.9e-07]
[1744280458265,1.13698256,81756.0,81755.0,7.9e-07]
[1744280458456,1.28310256,81756.0,81755.0,7.9e-07]
[1744280458982,1.13698256,81756.0,81755.0,7.9e-07]
[1744280459227,1.28310256,81756.0,81755.0,7.9e-07]
[1744280466303,0.94310256,81756.0,81755.0,7.9e-07]
[1744280466780,0.67642874,81756.0,81755.0,7.9e-07]
[1744280467511,0.6763802,81756.0,81755.0,0.04830079]
[1744280467976,0.0195192,81756.0,81755.0,0.09340079]
[1744280468472,0.0195192,81756.0,81755.0,0.10794164]
[1744280468701,0.2763802,81756.0,81755.0,0.10794164]
[1744280469178,0.25562777,81756.0,81755.0,0.10794164]
[1744280469437,0.01099777,81756.0,81755.0,0.35257464]
[1744280469700,0.012229,81768.0,81762.0,0.01223]
[1744280469919,0.25313337,81767.0,81764.0,0.0482]
[1744280470162,0.256831,81766.0,81764.0,0.0482]
[1744280470386,0.01223,81765.0,81764.0,0.0482]
[1744280471758,0.256833,81765.0,81764.0,0.0482]
[1744280474925,0.012231,81758.0,81757.0,0.0471]
[1744280475256,0.256855,81758.0,81757.0,0.06164085]
[1744280475436,0.00785768,81758.0,81757.0,0.43905267]
[1744280475595,0.244615,81761.0,81757.0,0.43905267]
[1744280475799,0.012229,81770.0,81764.0,0.01223]
[1744280476023,0.25683,81766.0,81765.0,0.01698651]
[1744280476267,0.25683,81766.0,81765.0,0.01454085]
[1744280477780,0.244587,81771.0,81767.0,0.01454085]
[1744280477997,0.256803,81775.0,81767.0,0.25913485]
[1744280478173,0.244579,81773.0,81767.0,0.25913485]
[1744280478554,0.244587,81771.0,81767.0,0.25913485]
[1744280479342,0.244585,81771.0,81767.0,0.25913485]
[1744280479537,0.012229,81770.0,81765.0,0.01454085]
[1744280479751,0.01223,81765.0,81757.0,0.0471]
[1744280479959,0.012229,81767.0,81758.0,0.13509467]
[1744280480170,0.244603,81765.0,81760.0,0.01454085]
[1744280480377,0.244603,81765.0,81761.0,0.01454085]
[1744280480631,0.25683,81766.0,81761.0,0.25915485]
[1744280480869,0.244605,81765.0,81761.0,0.01454085]
[1744280481045,0.244606,81764.0,81761.0,0.01454085]
[1744280481253,0.256832,81766.0,81761.0,0.01454085]
[1744280481458,0.244604,81765.0,81761.0,0.25915485]
[1744280481631,0.256861,81756.0,81755.0,0.04830079]
[1744280481832,0.01223,81761.0,81757.0,0.244625]
[1744280482065,0.244618,81760.0,81757.0,0.244625]
[1744280482270,0.01223,81762.0,81757.0,0.244625]
[1744280482453,0.244619,81760.0,81757.0,0.244625]
[1744280482651,0.244624,81758.0,81755.0,0.04830079]
[1744280483369,0.244629,81757.0,81755.0,0.04830079]
[1744280484602,0.256861,81756.0,81755.0,7.9e-07]
[1744280485343,0.37741482,81756.0,81755.0,7.9e-07]
[1744280485544,0.72591607,81756.0,81755.0,7.9e-07]
[1744280485858,0.73815053,81756.0,81755.0,7.9e-07]
[1744280486079,1.13815053,81756.0,81755.0,7.9e-07]
[1744280487196,1.12591607,81756.0,81755.0,7.9e-07]
[1744280487956,1.01317021,81756.0,81755.0,7.9e-07]
[1744280489575,1.13372403,81756.0,81755.0,7.9e-07]
[1744280490462,1.01317021,81756.0,81755.0,7.9e-07]
[1744280495043,0.27317021,81756.0,81755.0,7.9e-07]
[1744280499117,0.67317021,81756.0,81755.0,7.9e-07]
[1744280502370,0.27317021,81756.0,81755.0,7.9e-07]
[1744280508059,0.67317021,81756.0,81755.0,7.9e-07]
[1744280510417,1.17992403,81756.0,81755.0,7.9e-07]
[1744280514099,1.32760403,81756.0,81755.0,7.9e-07]
[1744280521668,0.256974,81720.0,81719.0,0.09603359]
[1744280522024,0.256974,81720.0,81716.0,0.0473]
[1744280522025,0.256984,81717.0,81716.0,0.0473]
[1744280522429,0.256984,81717.0,81706.0,0.01454085]
[1744280522430,0.257,81712.0,81707.0,0.14572]
[1744280522796,0.257,81712.0,81710.0,0.01236695]
[1744280522797,0.2645638,81712.0,81710.0,0.01236695]
[1744280523000,0.26469121,81712.0,81710.0,0.01236695]
[1744280524282,0.26469121,81712.0,81707.0,0.14572]
[1744280525897,0.26469121,81712.0,81706.0,0.047]
[1744280526102,0.26469121,81712.0,81707.0,0.244776]
[1744280526103,0.25245321,81712.0,81707.0,0.244776]
[1744280526247,0.25245321,81712.0,81706.0,0.047]
[1744280526449,0.25245321,81712.0,81708.0,0.012238]
[1744280526677,0.25245321,81712.0,81707.0,0.00244753]
[1744280526678,0.25245321,81712.0,81706.0,0.449736]
[1744280526877,0.25245321,81712.0,81707.0,0.244775]
[1744280527083,0.26469121,81712.0,81710.0,0.01203235]
[1744280527494,0.26469121,81712.0,81706.0,0.19272]
[1744280527767,0.26469121,81712.0,81702.0,0.00901359]
[1744280527940,0.26469121,81712.0,81706.0,0.01242946]
[1744280528141,0.26469121,81712.0,81702.0,0.15473359]
[1744280528701,0.26469121,81712.0,81703.0,0.01242664]
[1744280529154,0.63835271,81712.0,81688.0,0.0497372]
[1744280529317,0.61320055,81712.0,81688.0,0.0497372]
[1744280529521,0.73375437,81712.0,81688.0,0.0003372]
[1744280529727,0.74626314,81712.0,81688.0,0.0003372]
[1744280530575,1.14626314,81712.0,81688.0,0.0003372]
[1744280532152,1.02570932,81712.0,81691.0,0.244822]
[1744280532317,1.01320055,81712.0,81695.0,0.01215327]
[1744280532515,0.67320055,81712.0,81699.0,0.0494]
[1744280532790,0.67320055,81712.0,81700.0,0.00244769]
[1744280532988,0.67320055,81712.0,81699.0,0.0494]
[1744280533996,0.67320055,81712.0,81700.0,0.00244769]
[1744280534211,0.67320055,81712.0,81701.0,0.00244763]
[1744280534760,0.66469121,81712.0,81701.0,0.00244763]
[1744280535389,0.66469121,81712.0,81700.0,0.00244763]
[1744280535594,0.66469121,81712.0,81699.0,0.294198]
[1744280535784,0.66469121,81712.0,81699.0,0.0494]
[1744280537670,0.66469121,81712.0,81692.0,0.30455985]
[1744280537819,0.67319189,81712.0,81693.0,0.244817]
[1744280538021,0.67319189,81712.0,81693.0,0.244818]
[1744280538218,0.67319189,81712.0,81694.0,0.244814]
[1744280538755,1.05819189,81712.0,81692.0,0.01454085]
[1744280539654,1.17874571,81712.0,81690.0,0.01245728]
[1744280540834,1.13374571,81712.0,81691.0,0.00244799]
[1744280542452,1.01319189,81712.0,81691.0,0.00244799]
[1744280542860,0.67319189,81712.0,81692.0,0.244819]
[1744280543130,0.67319189,81712.0,81690.0,0.19889255]
[1744280543131,1.01319189,81712.0,81690.0,0.18665155]
[1744280543447,1.01319189,81712.0,81690.0,0.01245728]
[1744280543646,1.01319189,81712.0,81690.0,0.15821728]
[1744280545548,1.01319189,81712.0,81693.0,0.244818]
[1744280545746,1.01319189,81712.0,81694.0,0.244813]
[1744280546112,1.01319189,81712.0,81694.0,0.01224]
[1744280546308,1.01319189,81712.0,81695.0,0.00244781]
[1744280546555,1.01319189,81712.0,81694.0,0.01224]
[1744280546768,1.01319189,81712.0,81693.0,0.244816]
[1744280546899,1.01319189,81712.0,81690.0,0.41528528]
[1744280547104,1.01319189,81712.0,81692.0,0.24482]
[1744280547606,1.01319189,81712.0,81693.0,0.244818]
[1744280548021,1.13374571,81712.0,81690.0,0.01245728]
[1744280548223,0.257072,81689.0,81688.0,0.0003372]
[1744280548531,0.26438976,81689.0,81688.0,0.0003372]
[1744280548893,0.66438976,81689.0,81688.0,0.0003372]
[1744280549376,0.84004426,81689.0,81688.0,0.0003372]
[1744280553807,0.67289044,81689.0,81688.0,0.0003372]
[1744280556306,0.79344426,81689.0,81688.0,0.0003372]
[1744280556502,0.012242,81684.0,81683.0,8e-05]
[1744280556702,0.01946334,81684.0,81683.0,8e-05]
[1744280557206,0.41946334,81684.0,81683.0,8e-05]
[1744280557392,0.67280902,81684.0,81683.0,8e-05]
[1744280557796,0.67293635,81684.0,81683.0,8e-05]
[1744280564987,0.41584935,81684.0,81683.0,8e-05]
[1744280565191,0.67293635,81684.0,81683.0,8e-05]
[1744280565393,0.41584935,81684.0,81683.0,8e-05]
[1744280565973,0.41584935,81684.0,81683.0,0.25717]
[1744280566481,0.40734867,81684.0,81683.0,0.25717]
[1744280567665,0.00734867,81684.0,81683.0,0.25717]
[1744280567926,0.00734867,81684.0,81683.0,0.39226467]
[1744280568086,0.00012733,81684.0,81683.0,0.39226467]
[1744280568311,0.00012733,81684.0,81683.0,0.41510898]
[1744280570591,0.00012733,81684.0,81683.0,0.99872898]
[1744280571761,0.4,81711.0,81710.0,0.257006]
[1744280571908,0.00012776,81711.0,81710.0,0.257006]
[1744280572112,0.00012776,81711.0,81710.0,0.244768]
[1744280572535,0.00739233,81711.0,81710.0,0.244768]
[1744280572768,0.0086485,81711.0,81710.0,0.2161169]
[1744280572975,0.01591307,81711.0,81710.0,0.2161169]
[1744280573156,0.01591307,81711.0,81710.0,0.2283549]
[1744280573317,0.01591307,81711.0,81710.0,0.2161169]
[1744280573522,0.00739233,81711.0,81710.0,0.2161169]
[1744280574702,0.244783,81705.0,81683.0,0.04968]
[1744280574897,0.01224,81697.0,81693.0,0.244817]
[1744280575101,0.01224,81697.0,81694.0,0.244814]
[1744280575249,0.00728599,81696.0,81694.0,0.244814]
[1744280575650,0.00728599,81696.0,81694.0,0.244815]
[1744280575863,0.00728599,81696.0,81694.0,0.244814]
[1744280576071,0.00728599,81696.0,81681.0,0.004]
[1744280576286,0.257087,81684.0,81681.0,0.004]
[1744280576484,0.26435015,81684.0,81681.0,0.004]
[1744280577808,0.26439271,81684.0,81681.0,0.004]
[1744280582711,0.25215071,81684.0,81681.0,0.004]
[1744280582896,0.26439271,81684.0,81681.0,0.004]
[1744280585091,0.82084653,81684.0,81681.0,0.004]
[1744280585405,1.23305149,81684.0,81681.0,0.004]
[1744280585788,1.24156328,81684.0,81681.0,0.004]
[1744280587787,1.38644328,81684.0,81681.0,0.004]
[1744280589152,1.1088045,81684.0,81681.0,0.004]
[1744280589349,0.4158175,81684.0,81681.0,0.004]
[1744280589516,0.6729045,81684.0,81681.0,0.004]
[1744280590149,0.66439271,81684.0,81681.0,0.004]
[1744280595536,0.26439271,81684.0,81681.0,0.004]
[1744280595852,0.00730571,81684.0,81682.0,0.24485]
[1744280596058,0.00730571,81684.0,81683.0,0.25717]
[1744280596454,4.256e-05,81684.0,81683.0,0.25717]
[1744280596677,0.00714979,81684.0,81683.0,0.244928]
[1744280596900,4.256e-05,81684.0,81683.0,0.244928]
[1744280597143,0.00714979,81684.0,81683.0,8e-05]
[1744280597297,4.256e-05,81684.0,81683.0,8e-05]
[1744280597479,0.00714869,81684.0,81683.0,8e-05]
[1744280597702,0.00714869,81684.0,81683.0,0.244928]
[1744280597907,0.00714869,81684.0,81683.0,0.28383452]
[1744280598101,4.256e-05,81684.0,81683.0,0.28383452]
[1744280598302,0.00715645,81684.0,81683.0,0.02674452]
[1744280598527,4.256e-05,81684.0,81683.0,0.02674452]
[1744280598724,0.25200034,81684.0,81683.0,0.01220367]
[1744280598970,0.26424234,81684.0,81683.0,0.01220367]
[1744280605713,0.25200034,81684.0,81683.0,0.01220367]
[1744280606260,0.00715534,81684.0,81683.0,0.25705167]
[1744280606431,0.00715534,81684.0,81683.0,0.0350853]
[1744280606841,0.25200034,81684.0,81683.0,0.0350853]
[1744280607037,0.26424234,81684.0,81683.0,0.0350853]
[1744280607453,0.26424234,81684.0,81683.0,0.02296163]
[1744280607636,0.26424234,81684.0,81683.0,8e-05]
[1744280608192,0.66424234,81684.0,81683.0,8e-05]
[1744280610992,0.26424234,81684.0,81683.0,8e-05]
[1744280612704,0.25200034,81684.0,81683.0,8e-05]
[1744280612886,0.00715534,81684.0,81683.0,0.25717]
[1744280613090,0.00715534,81684.0,81683.0,0.27171085]
[1744280613428,0.00715534,81684.0,81683.0,8e-05]
[1744280613429,0.25712956,81684.0,81683.0,8e-05]
[1744280613826,0.26426442,81684.0,81683.0,8e-05]
[1744280615692,0.25202242,81684.0,81683.0,8e-05]
[1744280616037,0.00717742,81684.0,81683.0,8e-05]
[1744280618586,0.00717742,81684.0,81683.0,0.244928]
[1744280619581,0.00717742,81684.0,81683.0,8e-05]
[1744280619763,0.25202242,81684.0,81683.0,8e-05]
[1744280620140,0.26426442,81684.0,81683.0,8e-05]
[1744280622691,0.31236442,81684.0,81683.0,8e-05]
[1744280623935,0.26426442,81684.0,81683.0,8e-05]
[1744280624092,0.00717742,81684.0,81683.0,0.25717]
[1744280624276,0.00717742,81684.0,81683.0,0.244928]
[1744280624472,0.00717742,81684.0,81683.0,0.39226467]
[1744280624670,4.256e-05,81684.0,81683.0,0.39226467]
[1744280624918,4.256e-05,81684.0,81683.0,0.41518075]
[1744280631633,0.39997768,81693.0,81691.0,0.244823]
[1744280631788,0.64483925,81693.0,81691.0,0.244823]
[1744280631990,0.00712934,81692.0,81691.0,0.244823]
[1744280635528,0.00712934,81692.0,81683.0,8e-05]
[1744280635529,0.244828,81690.0,81683.0,8e-05]
[1744280635707,0.244845,81684.0,81683.0,8e-05]
[1744280636106,0.25201415,81684.0,81683.0,8e-05]
[1744280636318,0.00716915,81684.0,81683.0,0.244928]
[1744280636530,0.244839,81688.0,81686.0,0.244839]
[1744280636732,0.00716406,81687.0,81686.0,0.244839]
[1744280636931,0.290431,81689.0,81686.0,0.244839]
[1744280637154,0.25200006,81688.0,81685.0,0.244837]
[1744280639529,0.25200006,81688.0,81686.0,0.244839]
[1744280639681,0.25200006,81688.0,81685.0,0.244837]
[1744280640827,0.25200006,81688.0,81686.0,0.244839]
[1744280640828,0.25199806,81688.0,81686.0,0.244839]
[1744280641147,0.25199806,81688.0,81685.0,0.244837]
[1744280641719,0.00716406,81688.0,81686.0,0.244837]
[1744280642073,0.25200006,81688.0,81685.0,0.244837]
[1744280642713,0.00716406,81688.0,81684.0,0.244845]
[1744280642909,0.00716406,81688.0,81687.0,0.244836]
[1744280643114,0.00716406,81688.0,81686.0,0.244839]
[1744280644296,0.25199806,81688.0,81685.0,0.244842]
[1744280644431,0.25199806,81688.0,81686.0,0.244839]
[1744280646657,0.00716406,81688.0,81686.0,0.244839]
[1744280646857,0.012241,81686.0,81683.0,8e-05]
[1744280647296,0.00716031,81685.0,81683.0,8e-05]
[1744280647877,0.244845,81684.0,81683.0,8e-05]
[1744280648309,0.00716142,81684.0,81683.0,0.244928]
[1744280648825,0.00716142,81684.0,81683.0,8e-05]
[1744280649137,0.25200642,81684.0,81683.0,8e-05]
[1744280649578,0.00716142,81684.0,81683.0,0.39226467]
[1744280649779,0.244835,81688.0,81685.0,0.24484]
[1744280649982,4.257e-05,81693.0,81692.0,0.25936285]
[1744280650203,4.257e-05,81693.0,81692.0,0.27160385]
[1744280650519,4.257e-05,81693.0,81692.0,0.29452025]
[1744280651175,4.257e-05,81693.0,81692.0,0.41507407]
[1744280651608,4.257e-05,81693.0,81692.0,0.46037407]
[1744280651808,4.257e-05,81693.0,81692.0,0.80951856]
[1744280652525,4.257e-05,81693.0,81692.0,0.78660216]
[1744280655261,0.0085552,81717.0,81716.0,0.24475]
[1744280655466,0.0085552,81717.0,81716.0,0.27195191]
[1744280655661,0.0001687,81721.0,81719.0,0.244739]
[1744280655848,0.4001687,81721.0,81719.0,0.244739]
[1744280656395,0.0001687,81721.0,81719.0,0.244739]
[1744280656987,0.0001687,81721.0,81720.0,0.244738]
[1744280657520,0.0001687,81721.0,81719.0,0.244739]
[1744280658186,0.0001687,81721.0,81720.0,0.244738]
[1744280661349,0.0001687,81721.0,81719.0,0.244739]
[1744280661569,0.0001687,81721.0,81720.0,0.244738]
[1744280661821,0.0001687,81721.0,81720.0,0.25927885]
[1744280661967,0.0001687,81721.0,81720.0,0.39206867]
[1744280662167,0.0001687,81721.0,81720.0,0.92372867]
[1744280662367,0.0001687,81721.0,81720.0,0.96882867]
[1744280666613,0.0001687,81721.0,81720.0,0.82406867]
[1744280666813,0.0001687,81721.0,81720.0,0.71752782]
[1744280667013,0.0001687,81721.0,81720.0,0.86224782]
[1744280667234,0.0001687,81721.0,81720.0,0.87678867]
[1744280668011,0.0001687,81726.0,81725.0,0.695559]
[1744280668323,0.0001687,81726.0,81725.0,0.88075367]
[1744280672018,0.0001687,81726.0,81725.0,1.02539367]
[1744280672312,0.0001687,81726.0,81725.0,0.87575367]
[1744280672623,0.0001687,81726.0,81725.0,1.02039367]
[1744280673396,0.0001687,81742.0,81741.0,0.643108]
[1744280673602,0.0001687,81742.0,81741.0,0.92284267]
[1744280674264,0.0001687,81742.0,81741.0,0.88603145]
[1744280674674,0.00029649,81742.0,81741.0,0.88603145]
[1744280677143,0.0001686,81754.0,81741.0,0.88603145]
[1744280677144,0.0001686,81754.0,81753.0,0.25687]
[1744280677348,0.0001686,81754.0,81753.0,0.39196467]
[1744280679988,0.0001686,81754.0,81753.0,0.53656467]
[1744280680960,0.0001686,81754.0,81753.0,0.87656467]
[1744280682455,0.0001686,81754.0,81753.0,0.73196467]
[1744280682655,0.0001686,81754.0,81753.0,0.87656467]
[1744280692707,0.0001686,81754.0,81753.0,0.12055382]
[1744280692914,0.0464686,81754.0,81753.0,0.37742382]
[1744280693114,0.0464686,81754.0,81753.0,0.39196467]
[1744280693542,0.0464686,81754.0,81753.0,0.13509467]
[1744280693742,0.0494,81753.0,81746.0,0.244659]
[1744280693982,0.244649,81750.0,81748.0,0.01454085]
[1744280694336,0.00781283,81749.0,81748.0,0.01454085]
[1744280695660,0.00781283,81749.0,81748.0,0.25919485]
[1744280696093,0.24465,81751.0,81749.0,0.244651]
[1744280696297,0.00781172,81750.0,81749.0,0.25919185]
[1744280697728,0.061631,81753.0,81749.0,0.01454085]
[1744280697945,0.244647,81751.0,81749.0,0.01454085]
[1744280698373,0.00777369,81750.0,81749.0,0.25919185]
[1744280698893,0.244644,81752.0,81749.0,0.25919185]
[1744280699109,0.244644,81752.0,81749.0,0.01454085]
[1744280699315,0.00777369,81751.0,81749.0,0.01454085]
[1744280699950,0.25242069,81751.0,81749.0,0.01454085]
[1744280700379,0.25242069,81751.0,81750.0,0.244648]
[1744280700380,0.00777369,81751.0,81750.0,0.244648]
[1744280700792,0.0001686,81754.0,81753.0,0.012231]
[1744280701004,0.0001686,81754.0,81753.0,0.27141085]
[1744280702902,0.2570356,81754.0,81753.0,0.15906085]
[1744280703721,0.244662,81747.0,81746.0,0.15906085]
[1744280703949,0.244662,81747.0,81746.0,0.01454085]
[1744280704204,0.244663,81747.0,81743.0,0.40372785]
[1744280704427,0.244663,81747.0,81745.0,0.244662]
[1744280704617,0.256884,81749.0,81744.0,0.244665]
[1744280704852,0.244655,81748.0,81745.0,0.244663]
[1744280705078,0.256884,81749.0,81746.0,0.244659]
[1744280705295,0.244654,81748.0,81745.0,0.244663]
[1744280705528,0.256884,81749.0,81746.0,0.244658]
[1744280705971,0.256886,81748.0,81743.0,0.17129385]
[1744280706170,0.256886,81748.0,81744.0,0.244665]
[1744280706292,0.244654,81748.0,81745.0,0.24466]
[1744280706493,0.244657,81747.0,81744.0,0.244665]
[1744280706856,0.256886,81748.0,81744.0,0.244664]
[1744280707063,0.244657,81747.0,81744.0,0.244664]
[1744280707214,0.244662,81746.0,81743.0,0.40372885]
[1744280707419,0.256886,81748.0,81743.0,0.40372885]
[1744280707658,0.244657,81747.0,81744.0,0.244663]
[1744280707884,0.244672,81742.0,81741.0,0.00042406]